lending/lending_fUSD_20240824
["ID","MTS","AMOUNT","RATE_DAILY","PERIOD"]
[335753880,1724478432878,-500.0,0.00010958,2]
[335753881,1724478432900,-500.0,0.00010958,2]
[335753882,1724478432921,-500.0,0.00010958,2]
[335753883,1724478432943,-500.0,0.00010958,2]
[335753884,1724478432965,-299.63,0.00010958,2]
[335753885,1724478432988,-500.0,0.00010958,2]
[335753886,1724478433009,-500.0,0.00010958,2]
[335753887,1724478433031,-211.71,0.00010958,2]
[335753888,1724478433054,-437.16642739,0.00010958,2]
[335753889,1724478433075,-500.0,0.00010958,2]
[335753890,1724478433098,-500.0,0.00010958,2]
[335753891,1724478433119,-500.0,0.00010958,2]
[335753892,1724478433140,-500.0,0.00010958,2]
[335753893,1724478433165,-500.0,0.00010958,2]
[335753894,1724478433188,-500.0,0.00010958,2]
[335753895,1724478433212,-500.0,0.00010958,2]
[335753896,1724478433235,-500.0,0.00010958,2]
[335753897,1724478433259,-500.0,0.00010958,2]
[335753898,1724478433282,-500.0,0.00010958,2]
[335753899,1724478433303,-500.0,0.00010958,2]
[335753900,1724478433324,-500.0,0.00010958,2]
[335753901,1724478433346,-500.0,0.00010958,2]
[335753902,1724478433370,-500.0,0.00010958,2]
[335753903,1724478433394,-500.0,0.00010958,2]
[335753904,1724478433418,-500.0,0.00010958,2]
[335753905,1724478433441,-500.0,0.00010958,2]
[335753906,1724478433464,-500.0,0.00010958,2]
[335753907,1724478433487,-500.0,0.00010958,2]
[335753908,1724478433510,-539.22884946,0.00010958,2]
[335753909,1724478433535,-500.0,0.00010958,2]
[335753910,1724478433555,-500.0,0.00010958,2]
[335753911,1724478433576,-500.0,0.00010958,2]
[335753912,1724478433597,-500.0,0.00010958,2]
[335753913,1724478433617,-500.0,0.00010958,2]
[335753914,1724478433637,-500.0,0.00010958,2]
[335753915,1724478433658,-500.0,0.00010958,2]
[335753916,1724478433678,-500.0,0.00010958,2]
[335753917,1724478433699,-511.35606681,0.00010958,2]
[335753918,1724478433730,-511.55883346,0.00010958,2]
[335753919,1724478433760,-500.0,0.00010958,2]
[335753920,1724478433789,-500.0,0.00010958,2]
[335753921,1724478433815,-500.0,0.00010958,2]
[335753922,1724478433841,-500.0,0.00010958,2]
[335753923,1724478433867,-204.05999999,0.00010958,2]
[335753924,1724478433894,-500.0,0.00010958,2]
[335753925,1724478433921,-500.0,0.00010958,2]
[335753926,1724478433945,-301.3025426,0.00010958,2]
[335753927,1724478433974,-517.37910759,0.00010958,2]
[335753928,1724478434001,-500.0,0.00010958,2]
[335753929,1724478434024,-500.0,0.00010958,2]
[335753930,1724478434050,-513.44585098,0.00010958,2]
[335753931,1724478434077,-500.0,0.00010958,2]
[335753932,1724478434101,-500.0,0.00010958,2]
[335753933,1724478434125,-500.0,0.00010958,2]
[335753934,1724478434148,-500.0,0.00010958,2]
[335753935,1724478434171,-504.38428421,0.00010958,2]
[335753936,1724478434194,-501.29291354,0.00010958,2]
[335753937,1724478434220,-500.0,0.00010958,2]
[335753938,1724478434248,-500.0,0.00010958,2]
[335753939,1724478434275,-500.0,0.00010958,2]
[335753940,1724478434302,-219.55200316,0.00010958,2]
[335753941,1724478434329,-164.74,0.00010959,2]
[335753942,1724478434352,-162.78,0.00010959,2]
[335753943,1724478434378,-151.33047118,0.00010974,2]
[335753944,1724478434404,-150.0,0.00010979,2]
[335753945,1724478434428,-150.0,0.00010979,2]
[335753946,1724478434454,-150.0,0.00010986,2]
[335753947,1724478434475,-3411.60684029,0.00010989,2]
[335753948,1724478434503,-150.0,0.00010993,2]
[335753949,1724478434527,-500.0,0.00010999,2]
[335753950,1724478434551,-510.92099842,0.00010999,2]
[335753951,1724478434575,-497.89129204,0.00010999,2]
[335753952,1724478434597,-500.0,0.00010999,2]
[335753953,1724478434620,-533.10937538,0.00010999,2]
[335753954,1724478434644,-500.0,0.00010999,2]
[335753955,1724478434669,-528.87705313,0.00010999,2]
[335753956,1724478434695,-500.0,0.00010999,2]
[335753957,1724478434722,-511.07915174,0.00010999,2]
[335753958,1724478434747,-524.76293189,0.00010999,2]
[335753959,1724478434776,-547.8583446,0.00010999,2]
[335753960,1724478434802,-526.87684338,0.00010999,2]
[335753961,1724478434827,-531.07578395,0.00010999,2]
[335753962,1724478434852,-517.99300016,0.00010999,2]
[335753963,1724478434876,-500.0,0.00010999,2]
[335753964,1724478434902,-530.57343966,0.00010999,2]
[335753965,1724478434925,-500.0,0.00010999,2]
[335753966,1724478434949,-500.0,0.00010999,2]
[335753967,1724478434973,-500.0,0.00010999,2]
[335753968,1724478434996,-500.0,0.00010999,2]
[335753969,1724478435019,-500.0,0.00010999,2]
[335753970,1724478435042,-509.74507976,0.00010999,2]
[335753971,1724478435065,-500.0,0.00010999,2]
[335753972,1724478435087,-513.33137528,0.00010999,2]
[335753973,1724478435110,-502.3154698,0.00010999,2]
[335753974,1724478435135,-514.21444003,0.00010999,2]
[335753975,1724478435159,-500.0,0.00010999,2]
[335753976,1724478435184,-502.46250276,0.00010999,2]
[335753977,1724478435207,-503.6191685,0.00010999,2]
[335753978,1724478435231,-500.0,0.00010999,2]
[335753979,1724478435254,-500.88250582,0.00010999,2]
[335753980,1724478435279,-500.0,0.00010999,2]
[335753981,1724478435304,-500.0,0.00010999,2]
[335753982,1724478435327,-500.68688854,0.00010999,2]
[335753983,1724478435351,-186.74530299,0.00010999,2]
[335753984,1724478435375,-502.06584949,0.00010999,2]
[335753985,1724478435400,-500.0,0.00010999,2]
[335753986,1724478435424,-504.02289646,0.00010999,2]
[335753987,1724478435449,-501.1522154,0.00010999,2]
[335753988,1724478435473,-500.0,0.00010999,2]
[335753989,1724478435497,-500.0,0.00010999,2]
[335753990,1724478435521,-500.0,0.00010999,2]
[335753991,1724478435546,-502.79350534,0.00010999,2]
[335753992,1724478435578,-521.23623034,0.00010999,2]
[335753993,1724478435602,-500.0,0.00010999,2]
[335753994,1724478435819,-500.0,0.00010999,2]
[335753995,1724478435840,-184.24658672,0.00010999,2]
[335753996,1724478435860,-500.0,0.00010999,2]
[335753997,1724478435881,-500.0,0.00010999,2]
[335753998,1724478435900,-500.0,0.00010999,2]
[335753999,1724478435923,-604209.26267313,0.00011,2]
[335754000,1724478435943,-3728.0,0.00011,2]
[335754001,1724478435963,-171.952,0.00011,2]
[335754002,1724478435983,-1923.0,0.00011,2]
[335754003,1724478436004,-1258.0,0.00011,2]
[335754004,1724478436025,-21775.0,0.00011,2]
[335754005,1724478436048,-1544.0,0.00011,2]
[335754006,1724478436075,-623.0,0.00011,2]
[335754007,1724478436095,-1674.0,0.00011,2]
[335754008,1724478436116,-810.0,0.00011,2]
[335754009,1724478436136,-556.0,0.00011,2]
[335754010,1724478436156,-1137.0,0.00011,2]
[335754011,1724478436176,-447.0,0.00011,2]
[335754012,1724478436197,-1077.0,0.00011,2]
[335754013,1724478436217,-1897.0,0.00011,2]
[335754014,1724478436237,-552.0,0.00011,2]
[335754015,1724478436258,-1154.0,0.00011,2]
[335754016,1724478436278,-3320.0,0.00011,2]
[335754017,1724478436299,-248.0,0.00011,2]
[335754018,1724478436320,-764.0,0.00011,2]
[335754019,1724478436341,-333038.37098815,0.00011,2]
[335754020,1724478436364,-250.0,0.00011,2]
[335754021,1724478436385,-1298.0,0.00011,2]
[335754022,1724478436408,-1000.0,0.00011,3]
[335754023,1724478436430,-1000.0,0.00011,2]
[335754024,1724478436450,-1000.0,0.00011,2]
[335754025,1724478436473,-1000.0,0.00011,2]
[335754026,1724478436495,-1000.0,0.00011,2]
[335754027,1724478436519,-12015402.45584992,0.00011,2]
[335754028,1724478436540,-1000.0,0.00011,2]
[335754029,1724478436561,-987.959796,0.00011,2]
[335754030,1724478436583,-151.0,0.00011,2]
[335754031,1724478436603,-151.0,0.00011,2]
[335754032,1724478436623,-151.0,0.00011,2]
[335754033,1724478436644,-151.0,0.00011,2]
[335754034,1724478436668,-151.0,0.00011,2]
[335754035,1724478436690,-17498.3956417,0.00011,2]
[335754036,1724478436719,-151.0,0.00011,2]
[335754037,1724478436742,-151.0,0.00011,2]
[335754038,1724478436766,-151.0,0.00011,2]
[335754039,1724478436789,-151.0,0.00011,2]
[335754040,1724478436811,-228.367116,0.00011,2]
[335754041,1724478436832,-151.0,0.00011,2]
[335754042,1724478436852,-245.0,0.00011,2]
[335754043,1724478436872,-151.0,0.00011,2]
[335754044,1724478436894,-207.697261,0.00011,2]
[335754045,1724478436914,-207.697261,0.00011,2]
[335754046,1724478436936,-151.0,0.00011,2]
[335754047,1724478436958,-203.900924,0.00011,2]
[335754048,1724478436979,-182.141216,0.00011,2]
[335754049,1724478437000,-323.89,0.00011,2]
[335754050,1724478437020,-151.0,0.00011,2]
[335754051,1724478437040,-151.0,0.00011,2]
[335754052,1724478437061,-152.605388,0.00011,2]
[335754053,1724478437081,-151.0,0.00011,2]
[335754054,1724478437264,15496.82271334,0.00010979,2]
[335754055,1724478437997,547.0,0.00011,2]
[335754056,1724478439021,348.5313142,0.00010799,2]
[335754077,1724478459138,13357.2538434,0.00010997,2]
[335754078,1724478469584,275.31,0.00011,2]
[335754079,1724478472057,500.0,0.00010999,2]
[335754080,1724478472345,500.0,0.00010999,2]
[335754081,1724478481359,-4975.1314286,0.00011004,2]
[335754082,1724478481382,-499.0,0.00011038,2]
[335754083,1724478481403,-300.0,0.00011049,2]
[335754084,1724478481430,-971205.52593762,0.0001105,3]
[335754085,1724478481454,-151.0,0.0001105,2]
[335754086,1724478481478,-151.420055,0.0001105,2]
[335754087,1724478481500,-152.489339,0.0001105,2]
[335754088,1724478481522,-151.0,0.0001105,2]
[335754089,1724478481543,-151.0,0.0001105,2]
[335754090,1724478481564,-151.0,0.0001105,2]
[335754091,1724478481587,-151.0,0.0001105,2]
[335754092,1724478481764,-151.0,0.0001105,2]
[335754093,1724478481788,-151.0,0.0001105,2]
[335754094,1724478481819,-151.0,0.0001105,2]
[335754095,1724478481842,-151.0,0.0001105,2]
[335754096,1724478481862,-151.0,0.0001105,2]
[335754097,1724478481883,-151.0,0.0001105,2]
[335754098,1724478481906,-151.0,0.0001105,2]
[335754099,1724478481931,-151.0,0.0001105,2]
[335754100,1724478481953,-151.0,0.0001105,2]
[335754101,1724478481973,-151.0,0.0001105,2]
[335754102,1724478481995,-151.0,0.0001105,2]
[335754103,1724478482016,-151.0,0.0001105,2]
[335754104,1724478482037,-151.0,0.0001105,2]
[335754105,1724478482058,-151.0,0.0001105,2]
[335754106,1724478482079,-207.697261,0.0001105,2]
[335754107,1724478482102,-207.697261,0.0001105,2]
[335754108,1724478482123,-219.876952,0.0001105,2]
[335754109,1724478482143,-151.0,0.0001105,2]
[335754110,1724478482164,-166.217016,0.0001105,2]
[335754111,1724478482184,-151.0,0.0001105,2]
[335754112,1724478482204,-151.0,0.0001105,2]
[335754113,1724478482227,-151.0,0.0001105,2]
[335754114,1724478485280,2627.9166784,0.00011043,2]
[335754115,1724478488876,588.49930224,0.00010958,2]
[335754117,1724478508936,949.97294688,0.00010999,2]
[335754118,1724478510764,4073.22705312,0.00011043,2]
[335754119,1724478510785,2524.51538868,0.00011043,2]
[335754120,1724478522651,9278.86602702,0.00010999,2]
[335754121,1724478530092,157.9,9.155e-05,2]
[335754122,1724478536714,250.30049243,0.00027,120]
[335754123,1724478541386,500.0,8.22e-05,2]
[335754124,1724478544650,151.0,0.00011,2]
[335754125,1724478544993,151.0,0.0001105,2]
[335754126,1724478548240,151.0,0.00011,2]
[335754127,1724478548569,151.0,0.0001105,2]
[335754135,1724478569396,500.0,0.00010958,2]
[335754136,1724478569670,500.0,0.00010958,2]
[335754137,1724478569931,500.0,0.00010958,2]
[335754138,1724478577077,556.87,0.00010958,2]
[335754139,1724478577356,556.87,0.00010958,2]
[335754140,1724478577661,556.87,0.00010958,2]
[335754141,1724478577929,556.87,0.00010958,2]
[335754142,1724478578168,556.87,0.00010958,2]
[335754143,1724478578415,556.87,0.00010958,2]
[335754144,1724478578684,556.87,0.00010999,2]
[335754145,1724478578937,556.87,0.00010999,2]
[335754146,1724478579193,556.87,0.00010999,2]
[335754147,1724478579462,556.87,0.00010999,2]
[335754148,1724478579487,379.18006161,0.00010958,2]
[335754149,1724478579719,556.87,0.00010999,2]
[335754150,1724478579810,548.21,0.00010958,2]
[335754151,1724478579981,556.87,0.00010999,2]
[335754152,1724478580219,556.87,0.00010999,2]
[335754153,1724478580383,739.43286019,0.00011049,2]
[335754154,1724478580496,556.87,0.00010999,2]
[335754155,1724478580845,556.87,0.00010999,2]
[335754156,1724478581018,556.87,0.00010999,2]
[335754159,1724478581346,556.87,0.00010999,2]
[335754160,1724478581616,556.87,0.00010999,2]
[335754161,1724478581946,556.87,0.00010999,2]
[335754162,1724478582171,500.0,0.00010958,2]
[335754163,1724478582212,556.87,0.00010999,2]
[335754164,1724478582484,556.87,0.00010999,2]
[335754165,1724478582725,556.87,0.00010999,2]
[335754166,1724478583000,556.87,0.00010999,2]
[335754167,1724478583262,556.9327579,0.00010999,2]
[335754168,1724478584251,26162.25941986,0.00010999,2]
[335754169,1724478584536,500.0,0.00010958,2]
[335754170,1724478584588,500.0,0.00010958,2]
[335754171,1724478585632,6048.896,0.000106,2]
[335754172,1724478585951,500.0,0.00010958,2]
[335754173,1724478586192,500.0,0.00010958,2]
[335754174,1724478586607,500.0,0.00010958,2]
[335754175,1724478586711,500.0,0.00010958,2]
[335754176,1724478586974,282.92,0.00010958,2]
[335754177,1724478588410,1276.0146638,0.00010999,2]
[335754178,1724478591108,580.88272505,0.00010958,2]
[335754179,1724478594398,284.0,0.0001082,2]
[335754180,1724478595223,234.01,0.00011,2]
[335754181,1724478595308,284.0,0.000104,2]
[335754182,1724478595963,284.0,9.97e-05,2]
[335754183,1724478596496,500.0,0.00010958,2]
[335754184,1724478596767,500.0,0.00010958,2]
[335754185,1724478597027,500.0,0.00010958,2]
[335754186,1724478597292,500.0,0.00010958,2]
[335754187,1724478597564,500.0,0.00010958,2]
[335754188,1724478597886,500.0,0.00010958,2]
[335754189,1724478598153,500.0,0.00010999,2]
[335754190,1724478598428,500.0,0.00010999,2]
[335754191,1724478598703,500.0,0.00010999,2]
[335754192,1724478598982,501.56032644,0.00010999,2]
[335754193,1724478600793,23644.1648,0.000106,2]
[335754194,1724478602299,527.24751742,0.00010999,2]
[335754195,1724478603179,1000.0,0.00011,2]
[335754196,1724478603686,500.0,0.00010958,2]
[335754197,1724478604198,500.0,0.00010958,2]
[335754198,1724478604474,500.0,0.00010958,2]
[335754199,1724478604765,500.0,0.00010958,2]
[335754200,1724478605085,500.0,0.00010958,2]
[335754201,1724478605335,500.0,0.00010958,2]
[335754202,1724478605595,500.0,0.00010958,2]
[335754203,1724478605872,500.0,0.00010999,2]
[335754209,1724478606122,500.0,0.00010999,2]
[335754210,1724478606394,500.0,0.00010999,2]
[335754211,1724478606451,435.33616004,0.00010958,2]
[335754212,1724478606479,450.2,0.00011,2]
[335754213,1724478606690,500.0,0.00010999,2]
[335754214,1724478606925,500.0,0.00010999,2]
[335754215,1724478607207,500.0,0.00010999,2]
[335754216,1724478607467,500.0,0.00010999,2]
[335754217,1724478607806,500.0,0.00010999,2]
[335754218,1724478607981,150.0,0.00011005,2]
[335754219,1724478608066,500.0,0.00010999,2]
[335754220,1724478608439,500.0,0.00010999,2]
[335754221,1724478608711,500.0,0.00010999,2]
[335754222,1724478608969,500.0,0.00010999,2]
[335754223,1724478609230,500.0,0.00010999,2]
[335754224,1724478609506,500.0,0.00010999,2]
[335754225,1724478609836,500.0,0.00010999,2]
[335754226,1724478610071,500.0,0.00010999,2]
[335754227,1724478610374,500.0,0.00010999,2]
[335754228,1724478610639,266.41,0.00010999,2]
[335754229,1724478611937,500.0,0.00010958,2]
[335754230,1724478612185,500.0,0.00010958,2]
[335754231,1724478612468,500.0,0.00010958,2]
[335754232,1724478612722,500.0,0.00010958,2]
[335754233,1724478613201,500.0,0.00010958,2]
[335754234,1724478613373,348.26526543,0.00010958,2]
[335754235,1724478613535,500.0,0.00010958,2]
[335754236,1724478613784,500.0,0.00010999,2]
[335754237,1724478614071,500.0,0.00010999,2]
[335754238,1724478614326,630.30136329,0.00010999,2]
[335754239,1724478614613,150.0,0.00011005,2]
[335754240,1724478616337,150.0,0.00010958,2]
[335754241,1724478616358,150.0,0.00010958,2]
[335754242,1724478616382,200.0,0.00010958,2]
[335754243,1724478616589,81.44721405,0.00010958,2]
[335754244,1724478616610,418.55278595,0.00010958,2]
[335754245,1724478616849,500.0,0.00010958,2]
[335754246,1724478617101,500.0,0.00010958,2]
[335754247,1724478617217,500.0,0.00010958,2]
[335754248,1724478617354,509.59141159,0.00010958,2]
[335754249,1724478617460,500.0,0.00010958,2]
[335754250,1724478617889,500.0,0.00010958,2]
[335754251,1724478618132,500.0,0.00010958,2]
[335754252,1724478618411,253.85,0.00010958,2]
[335754253,1724478619577,500.0,0.00010958,2]
[335754254,1724478619848,500.0,0.00010958,2]
[335754255,1724478619876,500.0,0.00010958,2]
[335754256,1724478620099,500.0,0.00010958,2]
[335754257,1724478620128,155.52409505,0.00010999,2]
[335754258,1724478620158,500.0,0.00010958,2]
[335754259,1724478620394,500.0,0.00010958,2]
[335754260,1724478620422,500.0,0.00010958,2]
[335754261,1724478620678,500.0,0.00010958,2]
[335754262,1724478620706,500.0,0.00010958,2]
[335754263,1724478620949,500.0,0.00010958,2]
[335754264,1724478620976,500.0,0.00010958,2]
[335754265,1724478621270,500.0,0.00010958,2]
[335754266,1724478621297,500.0,0.00010999,2]
[335754267,1724478621538,500.0,0.00010999,2]
[335754268,1724478621570,500.0,0.00010999,2]
[335754269,1724478621914,500.0,0.00010999,2]
[335754270,1724478622016,500.0,0.00010999,2]
[335754271,1724478622066,242.38507671,0.00010999,2]
[335754272,1724478622294,500.0,0.00010999,2]
[335754273,1724478622565,500.0,0.00010999,2]
[335754274,1724478622869,500.0,0.00010999,2]
[335754275,1724478623080,167.99835,0.0001105,2]
[335754276,1724478623119,500.0,0.00010999,2]
[335754277,1724478623374,500.0,0.00010999,2]
[335754278,1724478623626,155.0,0.00010999,2]
[335754279,1724478623653,500.0,0.00010999,2]
[335754280,1724478623896,559.08051038,0.00010999,2]
[335754281,1724478624149,500.0,0.00010958,2]
[335754282,1724478624393,500.0,0.00010958,2]
[335754283,1724478624652,500.0,0.00010958,2]
[335754284,1724478624890,500.0,0.00010958,2]
[335754285,1724478625144,500.0,0.00010958,2]
[335754286,1724478625431,500.0,0.00010958,2]
[335754287,1724478625853,150.378,0.00011005,2]
[335754288,1724478625881,500.0,0.00010999,2]
[335754289,1724478625918,500.0,0.00010958,2]
[335754290,1724478625997,500.0,0.00010999,2]
[335754291,1724478626093,500.0,0.00010958,2]
[335754292,1724478626260,500.0,0.00010999,2]
[335754293,1724478626341,500.0,0.00010958,2]
[335754294,1724478626518,500.0,0.00010999,2]
[335754295,1724478626642,500.0,0.00010958,2]
[335754296,1724478626808,500.0,0.00010999,2]
[335754297,1724478626901,602.11511896,0.00010958,2]
[335754298,1724478627078,500.0,0.00010999,2]
[335754299,1724478627326,500.0,0.00010999,2]
[335754300,1724478627603,508.77249499,0.00010999,2]
[335754301,1724478629412,503.78178211,0.00010999,2]
[335754302,1724478630434,516.15,0.00010958,2]
[335754303,1724478630700,516.15,0.00010958,2]
[335754304,1724478630931,35000.0,0.00010999,2]
[335754305,1724478630975,516.15,0.00010958,2]
[335754306,1724478631228,516.15,0.00010958,2]
[335754307,1724478631500,516.15,0.00010958,2]
[335754308,1724478631767,516.15,0.00010958,2]
[335754310,1724478632114,516.15,0.00010999,2]
[335754311,1724478632179,-155.66372853,0.00011127,2]
[335754312,1724478632189,-364.07,0.00011205,2]
[335754313,1724478632199,-626.24,0.00011205,2]
[335754314,1724478632209,-284.0,0.0001124,2]
[335754315,1724478632219,-834.69600758,0.00011336,2]
[335754316,1724478632231,-240.70100949,0.00011336,2]
[335754317,1724478632240,-412.0632366,0.00011379,2]
[335754318,1724478632250,-300.0,0.00011407,2]
[335754319,1724478632260,-300.0,0.00011407,2]
[335754320,1724478632269,-794.0,0.00011408,2]
[335754321,1724478632278,-426.79,0.00011479,2]
[335754322,1724478632288,-150.0,0.00011479,2]
[335754323,1724478632298,-284.0,0.0001166,2]
[335754324,1724478632308,-167.47,0.00011702,2]
[335754325,1724478632317,-946.93,0.00011785,2]
[335754326,1724478632327,-150.0,0.00011834,2]
[335754327,1724478632336,-347.1,0.00011897,2]
[335754328,1724478632345,-776.50927646,0.00011954,2]
[335754329,1724478632357,-1648.79072354,0.00011954,2]
[335754330,1724478632366,-155.0,0.00012,2]
[335754331,1724478632376,-150.0,0.00012,2]
[335754332,1724478632386,-1194.2735,0.00012,2]
[335754333,1724478632395,-794.0,0.00012009,2]
[335754334,1724478632404,-254.98834616,0.00012089,2]
[335754335,1724478632414,-760.01418315,0.00012089,2]
[335754336,1724478632434,-379.84201573,0.00012089,2]
[335754337,1724478632443,-172.62103612,0.00012089,2]
[335754338,1724478632455,-46.39470083,0.00012089,2]
[335754339,1724478632464,-284.0,0.0001209,2]
[335754340,1724478632474,-181.24,0.00012212,2]
[335754341,1724478632483,-499.0,0.00012265,2]
[335754342,1724478632493,-364.07,0.0001245,2]
[335754343,1724478632502,-626.24,0.0001245,2]
[335754344,1724478632511,-284.0,0.0001251,2]
[335754345,1724478632521,-420.0,0.0001253,2]
[335754346,1724478632530,-243.0,0.00012548,2]
[335754347,1724478632540,-794.0,0.00012641,2]
[335754349,1724478632549,-150.0,0.00012703,2]
[335754351,1724478632558,-151.98,0.00012703,2]
[335754353,1724478632568,-531.39,0.00012703,2]
[335754355,1724478632577,-260.32452295,0.00012703,2]
[335754357,1724478632591,-298.62086198,0.00012703,2]
[335754359,1724478632602,-168.61461507,0.00012703,2]
[335754361,1724478632611,-301.66,0.00012703,2]
[335754363,1724478632621,-150.58,0.00012703,2]
[335754365,1724478632630,-718.78,0.00012703,2]
[335754367,1724478632639,-150.0,0.00012703,2]
[335754369,1724478632648,-214.8,0.00012703,2]
[335754371,1724478632657,-150.0,0.00012703,2]
[335754373,1724478632667,-150.0,0.00012703,2]
[335754375,1724478632676,-150.0,0.00012703,2]
[335754377,1724478632685,-150.0,0.00012703,2]
[335754379,1724478632695,-150.0,0.00012703,2]
[335754381,1724478632704,-150.0,0.00012703,2]
[335754382,1724478632714,-150.0,0.00012703,2]
[335754384,1724478632724,-150.0,0.00012703,2]
[335754386,1724478632733,-150.0,0.00012703,2]
[335754388,1724478632743,-150.58,0.00012703,2]
[335754390,1724478632752,-575.93,0.0001271,2]
[335754392,1724478632762,-170.801,0.0001271,2]
[335754394,1724478632772,-150.153,0.00012839,2]
[335754396,1724478632781,-255.0,0.00012911,2]
[335754398,1724478632791,-284.0,0.0001293,2]
[335754400,1724478632800,-155.0,0.00012966,2]
[335754402,1724478632810,-157.9,0.00012991,2]
[335754404,1724478632820,-150.0,0.00013,2]
[335754406,1724478632829,-1000.0,0.00013,3]
[335754408,1724478632840,-10543.4949088,0.00013,2]
[335754410,1724478632852,-15496.82271334,0.00013052,2]
[335754412,1724478632862,-1343.2610154,0.00013086,2]
[335754414,1724478632872,-951.10050443,0.00013086,2]
[335754416,1724478632883,-304.85385062,0.00013282,2]
[335754418,1724478632892,-1054.2336773,0.00013282,2]
[335754420,1724478632902,-506.5806227,0.00013292,2]
[335754422,1724478632912,-266.77319565,0.00013292,2]
[335754424,1724478632923,-155.07822898,0.00013292,2]
[335754426,1724478632934,-266.77319565,0.00013292,2]
[335754428,1724478632943,-794.0,0.00013306,2]
[335754430,1724478632953,-284.0,0.0001335,2]
[335754432,1724478632963,-170.801,0.00013377,2]
[335754434,1724478632973,-499.0,0.00013491,2]
[335754436,1724478632983,-25304.0,0.00013675,2]
[335754438,1724478632993,-364.07,0.00013695,2]
[335754440,1724478633002,-626.24,0.00013695,2]
[335754442,1724478633013,-356.56,0.00013697,2]
[335754444,1724478633023,-416.8807773,0.00013698,2]
[335754445,1724478633032,-707.08,0.00013699,2]
[335754448,1724478633043,-200.0,0.00013699,2]
[335754449,1724478633053,-500.0,0.00013699,2]
[335754451,1724478633063,-383.24,0.00013699,2]
[335754452,1724478633073,-151.0,0.00013699,2]
[335754453,1724478633086,-151.0,0.00013699,2]
[335754454,1724478633097,-2751.0,0.00013699,2]
[335754455,1724478633107,-5648.0,0.00013729,2]
[335754456,1724478633117,-371.80089229,0.0001373,2]
[335754457,1724478633126,-587.0,0.00013764,2]
[335754458,1724478633136,-284.0,0.0001378,2]
[335754459,1724478633146,-500.0,0.00013799,2]
[335754460,1724478633156,-500.0,0.00013799,2]
[335754461,1724478633166,-500.0,0.00013799,2]
[335754462,1724478633176,-500.0,0.00013799,2]
[335754463,1724478633187,-500.0,0.00013799,2]
[335754464,1724478633207,-500.0,0.00013799,2]
[335754465,1724478633217,-182358.27277066,0.000138,3]
[335754466,1724478633230,-2808.07844217,0.000138,3]